bitfinex-derivatives/quotes_SOLF0:USTF0_20250307
["timestamp","ask_amount","ask_price","bid_price","bid_amount"]
[1741371925742,6.8888,145.16,145.15,59.6200361]
[1741371926143,32.78,145.23,145.15,59.6200361]
[1741371926339,0.04625893,145.17,145.15,59.6200361]
[1741371926647,0.04966567,145.17,145.15,59.66898125]
[1741371926840,6.8888,145.16,145.15,59.66898125]
[1741371927239,6.8888,145.16,145.15,0.04894515]
[1741371929346,0.04966567,145.17,145.07,12.52130549]
[1741371929541,6.8926,145.08,145.07,12.52130549]
[1741371929845,209.9861,145.2,145.04,6.854]
[1741371929846,32.78,145.14,145.04,6.854]
[1741371930045,32.78,145.13,145.04,6.854]
[1741371930746,0.04701482,145.1,145.07,0.04382817]
[1741371931138,6.8926,145.08,145.07,0.04382817]
[1741371931345,0.04701482,145.1,145.07,0.04382817]
[1741371931850,32.78,145.16,145.07,49.09120329]
[1741371932044,32.78,145.19,145.07,0.04382817]
[1741371932251,42.15437512,145.18,145.05,32.78]
[1741371932449,42.15437512,145.15,145.04,6.854]
[1741371932753,32.78,145.14,145.04,6.854]
[1741371932945,0.05035507,145.11,145.08,0.05105525]
[1741371933961,6.8921,145.09,145.08,0.05105525]
[1741371934155,0.05035507,145.11,145.08,0.05105525]
[1741371934652,3.6504,145.19,145.08,0.05105525]
[1741371934854,3.6504,145.19,145.09,42.15437512]
[1741371935054,6.8891,145.16,145.09,49.04627512]
[1741371935244,3.6504,145.19,145.09,42.15437512]
[1741371935443,3.6504,145.19,145.08,3.8466]
[1741371935754,3.6504,145.19,145.12,0.052512]
[1741371936852,3.6642,145.23,145.12,46.09748712]
[1741371937057,3.6642,145.23,145.12,46.04497512]
[1741371937356,3.6642,145.23,145.16,0.04790009]
[1741371938254,214.4727,145.26,145.16,0.04790009]
[1741371938457,206.72,145.26,145.18,42.15437512]
[1741371938649,206.72,145.26,145.2,0.04408221]
[1741371940159,32.78,145.29,145.2,4.07478221]
[1741371940346,32.78,145.29,145.2,4.0307]
[1741371940551,74.93437512,145.29,145.23,0.04509018]
[1741371940959,6.8853,145.24,145.23,0.04509018]
[1741371941454,32.78,145.29,145.23,0.04509018]
[1741371943656,6.885,145.24,145.23,0.04509018]
[1741371944059,42.15437512,145.27,145.23,9.018e-05]
[1741371944255,32.78,145.29,145.23,9.018e-05]
[1741371944659,6.8845,145.25,145.23,9.018e-05]
[1741371945059,0.04867576,145.25,145.23,9.018e-05]
[1741371945260,206.7,145.33,145.23,42.1544653]
[1741371945558,206.7,145.33,145.24,32.78]
[1741371945755,248.85437512,145.33,145.21,39.6662]
[1741371945959,248.85437512,145.33,145.21,32.78]
[1741371946256,42.15437512,145.3,145.21,32.78]
[1741371946457,36.5506,145.29,145.17,46.15237512]
[1741371946654,6.8899,145.14,145.08,49.04647512]
[1741371946851,32.78,145.18,145.08,7.4961]
[1741371947050,74.93437512,145.18,145.08,7.4961]
[1741371947257,3.8384,145.17,145.07,36.44322197]
[1741371947454,42.15437512,145.15,145.07,36.44322197]
[1741371947656,42.15437512,145.12,145.07,36.44322197]
[1741371947855,6.8926,145.08,145.07,36.44322197]
[1741371948056,32.78,145.1,145.08,227.94668726]
[1741371948264,32.78,145.1,145.08,135.89895268]
[1741371948464,42.15437512,145.09,145.08,119.24235268]
[1741371948760,42.15437512,145.09,145.05,273.11570753]
[1741371948961,42.15437512,145.06,145.05,78.55135847]
[1741371949161,74.93437512,145.06,145.05,46.73235847]
[1741371949361,78.37437512,145.06,145.05,5.847e-05]
[1741371949556,85.26787512,145.06,145.05,5.847e-05]
[1741371949752,32.78,145.06,145.05,5.847e-05]
[1741371950366,0.05041654,145.07,145.05,5.847e-05]
[1741371951163,42.15437512,145.06,145.05,5.847e-05]
[1741371951365,49.04787512,145.06,145.05,5.847e-05]
[1741371951566,45.59437512,145.06,145.04,0.04388566]
[1741371951758,239.54,145.05,144.93,11.2446]
[1741371951958,42.15437512,145.03,144.93,11.2446]
[1741371952967,0.04768656,144.99,144.97,0.04582433]
[1741371953261,32.78,144.98,144.97,0.04582433]
[1741371953860,0.04768656,144.99,144.97,0.04582433]
[1741371954657,32.78,145.03,144.97,0.04582433]
[1741371954957,206.76,145.05,144.99,6.8966]
[1741371955360,206.76,145.05,144.97,3.8083]
[1741371955760,0.04838741,145.02,145.0,0.04772239]
[1741371955960,32.8,145.01,144.93,7.3894]
[1741371956256,39.696,145.01,144.93,7.3894]
[1741371956463,74.95437512,145.01,144.88,42.15437512]
[1741371957171,0.05157933,144.96,144.93,0.04503807]
[1741371957466,32.8,144.95,144.93,0.04503807]
[1741371960070,32.8,144.95,144.85,74.95437512]
[1741371960367,206.9,144.96,144.88,42.15437512]
[1741371960569,206.9,144.96,144.89,3.7578]
[1741371960872,32.8,144.95,144.86,42.15437512]
[1741371961168,0.04694463,144.94,144.91,0.04498658]
[1741371961368,6.9002,144.92,144.91,0.04498658]
[1741371961763,42.15437512,144.93,144.91,0.04498658]
[1741371961959,0.04694463,144.94,144.91,0.04498658]
[1741371962570,32.84694463,144.94,144.91,0.04498658]
[1741371962771,42.15437512,144.92,144.69,191.0]
[1741371962962,42.15437512,144.86,144.74,7.8387]
[1741371963264,239.76,144.85,144.74,7.8387]
[1741371963869,0.04635457,144.81,144.78,0.05080555]
[1741371964171,207.0,144.93,144.79,32.8]
[1741371964376,207.0,144.93,144.86,6.9029]
[1741371964567,96.21488442,144.96,144.91,42.15437512]
[1741371964764,45.9370584,145.02,144.91,42.15437512]
[1741371964765,33.8838584,145.02,144.95,42.15437512]
[1741371964964,42.15437512,145.2,145.01,42.15437512]
[1741371965164,7.5145,145.16,145.06,42.15437512]
[1741371965473,0.0466446,145.1,145.07,32.82]
[1741371965675,57.421323,145.17,145.08,42.15437512]
[1741371965869,57.421323,145.17,145.12,42.15437512]
[1741371966078,57.421323,145.17,145.13,32.86]
[1741371966469,57.421323,145.17,145.13,39.7502]
[1741371966973,0.04886729,145.16,145.14,0.04575195]
[1741371967784,0.04886729,145.16,145.14,807.15693715]
[1741371969073,0.04886729,145.16,145.15,42.15437512]
[1741371969273,0.04886729,145.16,145.15,305.14566018]
[1741371969574,0.04886729,145.16,145.15,262.99128506]
[1741371970578,32.78,145.23,145.15,262.99128506]
[1741371970975,74.93437512,145.23,145.15,262.99128506]
[1741371971172,32.78,145.23,145.15,262.99128506]
[1741371971374,74.93437512,145.23,145.15,262.99128506]
[1741371971583,74.95437512,145.24,145.15,262.99128506]
[1741371971875,0.04591187,145.2,145.19,180.67120248]
[1741371972276,74.95437512,145.24,145.19,180.67120248]
[1741371972570,42.20009422,145.21,145.19,37.80310248]
[1741371972777,32.78,145.2,145.16,325.59431812]
[1741371973774,0.0457191,145.21,145.16,325.59431812]
[1741371973970,0.0457191,145.21,145.14,32.78]
[1741371974175,0.0457191,145.21,145.17,0.04436546]
[1741371974579,42.20009422,145.21,145.17,0.04436546]
[1741371974977,6.8877,145.19,145.17,0.04436546]
[1741371975377,42.20009422,145.21,145.17,0.04436546]
[1741371975573,6.9325191,145.21,145.17,0.04436546]
[1741371975885,0.0457191,145.21,145.17,0.04436546]
[1741371976582,185.8159715,145.26,145.17,0.04436546]
[1741371976777,32.78,145.29,145.19,42.15437512]
[1741371976977,42.15437512,145.3,145.2,32.78]
[1741371977176,6.8842,145.26,145.2,32.78]
[1741371977381,42.15437512,145.3,145.2,32.78]
[1741371977783,0.05070362,145.26,145.24,0.04631676]
[1741371979088,6.8845,145.25,145.24,0.04631676]
[1741371979483,6.8845,145.25,145.24,1.676e-05]
[1741371982677,0.05070362,145.26,145.24,1.676e-05]
[1741371983487,206.8,145.32,145.24,1.676e-05]
[1741371983685,206.74,145.38,145.24,1.676e-05]
[1741371983880,32.76,145.37,145.23,3.6532]
[1741371984583,0.04760303,145.31,145.29,0.04511566]
[1741371984780,32.76,145.37,145.29,0.04511566]
[1741371984986,0.050722,145.31,145.29,0.04511566]
[1741371985184,0.04767761,145.31,145.29,0.04511566]
[1741371985385,6.8803,145.34,145.29,0.04511566]
[1741371985688,239.5,145.38,145.27,32.76]
[1741371986688,239.5,145.38,145.31,0.04795241]
[1741371986689,0.0434316,145.34,145.31,0.04795241]
[1741371987088,6.8812,145.32,145.31,0.04795241]
[1741371987788,6.8812,145.32,145.31,5.241e-05]
[1741371989289,45.59437512,145.32,145.18,32.74]
[1741371989584,42.15437512,145.28,145.18,32.74]
[1741371989785,32.74,145.27,145.15,7.6418]
[1741371989985,42.15437512,145.25,145.15,7.6418]
[1741371990388,6.8869,145.2,145.19,0.0516906]
[1741371990784,6.8869,145.2,145.19,9.06e-05]
[1741371997194,213.5669,145.2,145.19,9.06e-05]
[1741371997579,6.8907,145.12,145.11,3.6818]
[1741371998187,32.76,145.16,145.09,7.7751]
[1741371998585,206.68,145.2,145.09,7.7751]
[1741371998586,248.83437512,145.2,145.09,7.7751]
[1741371998785,0.04997584,145.14,145.11,0.05183828]
[1741371998984,206.68,145.2,145.11,32.76]
[1741371999182,6.8872,145.2,145.14,6.8897]
[1741371999389,32.76,145.21,145.12,42.15437512]
[1741371999789,32.76,145.21,145.11,32.76]
[1741372000091,0.04524336,145.17,145.15,0.0487654]
[1741372000281,6.8891,145.16,145.15,0.0487654]
[1741372001290,6.93364336,145.17,145.15,0.0487654]
[1741372001492,0.04524336,145.17,145.15,0.0487654]
[1741372001683,39.6488,145.16,145.15,6.54e-05]
[1741372005189,43.0888,145.16,145.15,6.54e-05]
[1741372005395,39.6488,145.16,145.15,6.54e-05]
[1741372005995,0.04524336,145.17,145.15,6.54e-05]
[1741372006393,32.76,145.3,145.16,74.91437512]
[1741372006697,32.76,145.3,145.19,42.15437512]
[1741372006897,32.76,145.3,145.2,32.76]
[1741372007399,0.0490337,145.26,145.24,0.04381668]
[1741372007597,6.8846,145.25,145.24,0.04381668]
[1741372008096,39.6931337,145.26,145.24,0.04381668]
[1741372008293,32.8090337,145.26,145.24,0.04381668]
[1741372008689,6.8845,145.25,145.24,0.04381668]
[1741372009195,6.8845,145.25,145.24,1.668e-05]
[1741372009791,49.03887512,145.25,145.24,1.668e-05]
[1741372009995,45.59437512,145.25,145.13,3.7222]
[1741372010296,42.15437512,145.22,145.13,3.7222]
[1741372010494,32.76,145.21,145.13,3.7222]
[1741372010995,42.15437512,145.19,145.11,3.9169]
[1741372011198,0.0469433,145.18,145.16,0.04499011]
[1741372011491,32.76,145.17,145.16,0.04499011]
[1741372011800,39.6485,145.17,145.16,9.011e-05]
[1741372014002,6.8885,145.17,145.16,9.011e-05]
[1741372014694,6.9350433,145.18,145.16,9.011e-05]
[1741372014899,0.0469433,145.18,145.16,9.011e-05]
[1741372015095,6.8879,145.18,145.16,9.011e-05]
[1741372015298,32.74,145.22,145.16,9.011e-05]
[1741372015690,6.904,145.48,145.16,9.011e-05]
[1741372015691,42.15437512,145.28,145.16,9.011e-05]
[1741372015892,32.76,145.27,145.14,32.76]
[1741372016090,0.04473807,145.22,145.2,3.693e-05]
[1741372016301,6.8864,145.21,145.2,3.693e-05]
[1741372017699,49.04077512,145.21,145.2,3.693e-05]
[1741372017894,255.76077512,145.21,145.2,3.693e-05]
[1741372018099,6.8907,145.12,145.11,3.9169]
[1741372018704,32.74,145.17,145.11,3.9169]
[1741372019099,6.8907,145.12,145.11,3.9169]
[1741372019504,0.04665187,145.15,145.11,3.9169]
[1741372020202,6.93625187,145.15,145.11,7.7418]
[1741372020504,0.04665187,145.15,145.11,7.7418]
[1741372020906,32.74,145.2,145.11,7.7418]
[1741372021895,0.04987417,145.17,145.14,0.05049654]
[1741372022102,0.04987417,145.17,145.14,9.654e-05]
[1741372022295,6.8896,145.15,145.14,9.654e-05]
[1741372023503,6.8892,145.15,145.14,9.654e-05]
[1741372023904,0.04987417,145.17,145.14,9.654e-05]
[1741372024104,6.889,145.16,145.14,9.654e-05]
[1741372024409,0.04987417,145.17,145.14,9.654e-05]
[1741372025106,6.8892,145.15,145.14,9.654e-05]
[1741372025504,0.04987417,145.17,145.14,9.654e-05]
[1741372025707,206.7702,145.24,145.14,9.654e-05]
[1741372025708,210.7697,145.29,145.14,42.15447166]
[1741372025902,74.89437512,145.28,145.16,6.8887]
[1741372026103,6.8878,145.18,145.17,3.8743]
[1741372026510,32.74,145.23,145.17,3.8743]
[1741372026905,0.05263482,145.21,145.19,0.04918036]
[1741372028010,6.8869,145.2,145.19,8.036e-05]
[1741372028211,32.79263482,145.21,145.11,7.7418]
[1741372028413,6.889,145.16,145.11,7.7418]
[1741372028606,32.74,145.21,145.11,7.7418]
[1741372028809,6.8878,145.18,145.11,7.7418]
[1741372029010,42.15437512,145.25,145.11,49.89617512]
[1741372029205,32.74,145.25,145.14,42.15437512]
[1741372029411,0.04706437,145.19,145.17,0.04554777]
[1741372029612,74.89437512,145.25,145.17,0.04554777]
[1741372029810,0.05252047,145.19,145.17,0.04554777]
[1741372030120,0.04613198,145.19,145.17,0.04554777]
[1741372030510,6.8878,145.18,145.17,0.04554777]
[1741372031409,0.04613198,145.19,145.17,0.04554777]
[1741372031904,6.93363198,145.19,145.17,0.04554777]
[1741372032114,0.04613198,145.19,145.17,0.04554777]
[1741372032622,6.8878,145.18,145.17,0.04554777]
[1741372033816,6.8878,145.18,145.17,4.777e-05]
[1741372034317,6.93383198,145.19,145.17,4.777e-05]
[1741372034617,0.04613198,145.19,145.17,4.777e-05]
[1741372035423,32.74,145.26,145.18,6.8876]
[1741372035722,32.74,145.27,145.14,74.89437512]
[1741372035923,6.8856,145.23,145.19,6.8873]
[1741372036217,32.74,145.27,145.14,74.89437512]
[1741372036418,0.05093493,145.22,145.2,0.04353718]
[1741372036719,239.5,145.29,145.2,0.04353718]
[1741372036909,239.5,145.29,145.18,32.74]
[1741372036910,239.5,145.29,145.19,3.7677]
[1741372037316,239.5,145.29,145.2,3.8191]
[1741372037717,0.04344486,145.26,145.23,0.04631961]
[1741372037924,32.74,145.33,145.23,0.04631961]
[1741372038123,32.74,145.33,145.23,42.15437512]
[1741372038315,314.2242586,145.35,145.23,42.15437512]
[1741372038622,74.7442586,145.35,145.26,42.15437512]
[1741372038824,71.25821845,145.36,145.33,42.15437512]
[1741372039119,76.2952757,145.41,145.34,32.72]
[1741372039324,76.2952757,145.41,145.37,6.8783]
[1741372039625,0.0515536,145.39,145.38,32.72]
[1741372039824,0.0515536,145.39,145.36,0.05027242]
[1741372040416,0.0515536,145.39,145.37,6.8786]
[1741372040712,0.0515536,145.39,145.36,0.05027242]
[1741372040911,76.2952757,145.41,145.38,42.15437512]
[1741372041117,76.2952757,145.41,145.39,32.72]
[1741372041618,76.2952757,145.41,145.36,191.05027242]
[1741372042130,0.04738909,145.4,145.37,42.15437512]
[1741372042419,32.72,145.51,145.39,6.8778]
[1741372042717,32.72,145.51,145.37,42.15437512]
[1741372042718,32.72,145.51,145.4,32.7]
[1741372042922,0.04872411,145.45,145.4,32.7]
[1741372043125,0.04872411,145.45,145.43,0.0515135]
[1741372043927,42.20309923,145.45,145.34,32.7]
[1741372044115,3.6196,145.44,145.34,32.7]
[1741372044316,32.7,145.46,145.34,74.85437512]
[1741372044517,39.9026,145.49,145.37,42.15437512]
[1741372044922,42.15437512,145.45,145.34,74.85437512]
[1741372045226,32.7,145.44,145.34,32.7]
[1741372045624,3.653,145.43,145.34,32.7]
[1741372045814,206.52,145.45,145.34,74.85437512]
[1741372046221,0.05069058,145.41,145.38,0.05092612]
[1741372047223,6.8779,145.39,145.38,0.05092612]
[1741372047722,0.05069058,145.41,145.38,0.05092612]
[1741372048229,6.8779,145.39,145.38,0.05092612]
[1741372050022,3.86529058,145.41,145.28,42.15437512]
[1741372050222,3.6286,145.4,145.28,42.15437512]
[1741372050526,3.6286,145.4,145.31,42.15437512]
[1741372050721,3.6286,145.4,145.32,32.68]
[1741372050916,6.8787,145.38,145.32,32.68]
[1741372051122,0.05012443,145.37,145.35,0.05013414]
[1741372051617,6.8793,145.36,145.35,0.05013414]
[1741372051826,0.05012443,145.37,145.26,74.83437512]
[1741372052020,239.14,145.39,145.26,74.83437512]
[1741372052825,239.14,145.39,145.31,0.05041325]
[1741372053130,0.04504166,145.34,145.31,0.05041325]
[1741372053833,0.04504166,145.34,145.32,42.15437512]
[1741372054236,32.68,145.44,145.32,45.59437512]
[1741372054435,210.3552,145.45,145.36,6.8789]
[1741372054641,3.8952,145.45,145.35,74.83437512]
[1741372054840,10.7706,145.45,145.37,6.8785]
[1741372055137,3.8952,145.45,145.37,6.8785]
[1741372055328,0.04492562,145.42,145.4,0.05150559]
[1741372056631,0.04492562,145.42,145.41,6.8769]
[1741372056839,0.04492562,145.42,145.4,0.05150559]
[1741372059937,0.04492562,145.42,145.41,6.8769]
[1741372061032,2.562e-05,145.42,145.41,52.47127512]
[1741372061439,2.562e-05,145.42,145.41,49.03127512]
[1741372061640,2.562e-05,145.42,145.41,52.47127512]
[1741372062140,42.15437512,145.56,145.41,236.59437512]
[1741372062340,3.5477,145.55,145.42,32.66]
[1741372062541,3.5477,145.55,145.47,6.8737]
[1741372062847,3.5477,145.55,145.46,32.66]
[1741372063041,0.04594481,145.52,145.49,0.05072601]
[1741372065040,0.04594481,145.52,145.46,32.66]
[1741372065441,6.8734,145.49,145.43,32.64]
[1741372065745,42.15437512,145.53,145.4,32.64]
[1741372065945,7.5875,145.48,145.4,32.64]
[1741372066246,0.04513231,145.45,145.43,0.04624499]
[1741372066446,0.04513231,145.45,145.43,6.92224499]
[1741372066749,0.04513231,145.45,145.43,0.04624499]
[1741372067648,0.04513231,145.45,145.37,32.64]
[1741372068751,6.8757,145.44,145.4,0.04818871]
[1741372069252,6.8767,145.42,145.4,0.04818871]
[1741372070152,6.8769,145.41,145.4,0.04818871]
[1741372070950,6.8782,145.39,145.35,32.64]
[1741372071555,7.5285,145.44,145.35,32.64]
[1741372072152,0.05083742,145.41,145.38,0.0486274]
[1741372072542,0.05083742,145.41,145.4,6.8774]
[1741372074152,0.05083742,145.41,145.39,32.64]
[1741372074655,0.05083742,145.41,145.38,0.0486274]
[1741372075251,32.69083742,145.41,145.37,36.17298849]
[1741372075450,7.5830025,145.4,145.37,18.51468849]
[1741372076358,7.5830025,145.4,145.37,18.56091563]
[1741372077055,7.5830025,145.4,145.37,0.04622714]
[1741372079860,14.4607025,145.4,145.37,0.04622714]
[1741372080047,7.5830025,145.4,145.37,0.04622714]
[1741372080248,82.37737762,145.4,145.29,9.04324712]
[1741372080956,40.2230025,145.4,145.35,6.8797]
[1741372081254,7.5830025,145.4,145.3,74.79437512]
[1741372081558,0.04366042,145.39,145.36,0.04395697]
[1741372083360,0.04366042,145.39,145.38,6.8783]
[1741372084760,3.7213,145.45,145.36,42.19833209]
[1741372084967,3.7213,145.45,145.42,6.8763]
[1741372085265,3.7213,145.45,145.39,32.64]
[1741372085467,3.7213,145.45,145.36,32.64]
[1741372086064,0.0501506,145.42,145.39,0.05220392]
[1741372086967,6.9267506,145.42,145.39,0.05220392]
[1741372087566,6.8774,145.4,145.39,0.05220392]
[1741372087765,0.0501506,145.42,145.39,0.05220392]
[1741372088073,0.0501506,145.42,145.41,6.8769]
[1741372088768,0.0501506,145.42,145.39,0.05220392]
[1741372089164,248.56452572,145.42,145.31,9.04324712]
[1741372089366,7.5931,145.41,145.31,9.04324712]
[1741372089565,6.8806,145.34,145.31,9.04324712]
[1741372089766,42.15437512,145.39,145.31,9.04324712]
[1741372090270,42.15437512,145.39,145.34,0.04553623]
[1741372090271,0.04659138,145.36,145.34,0.04553623]
[1741372092374,0.04659138,145.36,145.35,6.8798]
[1741372092674,0.04659138,145.36,145.34,0.04553623]
[1741372093969,6.8798,145.35,145.34,0.04553623]
[1741372094170,0.04659138,145.36,145.28,32.64]
[1741372094370,42.15437512,145.37,145.28,32.64]
[1741372094671,3.6981,145.36,145.28,32.64]
[1741372095471,0.04767876,145.33,145.31,0.04883438]
[1741372097176,0.04767876,145.33,145.31,6.93033438]
[1741372097570,0.04767876,145.33,145.31,0.04883438]
[1741372098272,0.04767876,145.33,145.32,6.8812]
[1741372098478,0.04767876,145.33,145.31,0.04883438]
[1741372098787,0.04767876,145.33,145.32,6.8812]
[1741372099280,0.04767876,145.33,145.32,39.5212]
[1741372099680,0.04767876,145.33,145.32,6.8812]
[1741372099975,0.04767876,145.33,145.31,0.04883438]
[1741372100779,6.92837876,145.33,145.31,0.04883438]
[1741372100981,0.04767876,145.33,145.31,0.04883438]
[1741372102376,32.68767876,145.33,145.25,9.04324712]
[1741372102577,7.6031,145.32,145.25,9.04324712]
[1741372103073,32.62,145.39,145.27,42.15437512]
[1741372103285,40.2231,145.39,145.27,74.77437512]
[1741372103483,0.04756908,145.34,145.32,0.0495321]
[1741372103682,40.2231,145.39,145.32,0.0495321]
[1741372103882,0.04851533,145.34,145.32,0.0495321]
[1741372104079,40.2231,145.39,145.32,0.0495321]
[1741372104282,0.04542072,145.37,145.32,0.0495321]
[1741372105279,0.04542072,145.37,145.35,6.8797]
[1741372105585,0.04542072,145.37,145.32,0.0495321]
[1741372106582,0.04542072,145.37,145.35,6.8794]
[1741372106787,0.04542072,145.37,145.32,0.0495321]
[1741372106981,58.45128602,145.37,145.32,0.0495321]
[1741372107584,3.8469,145.36,145.32,0.0495321]
[1741372108681,6.8801,145.35,145.32,0.0495321]
[1741372109392,3.8469,145.36,145.32,0.0495321]
[1741372110890,6.8807,145.33,145.32,0.0495321]
[1741372111092,3.8469,145.36,145.32,0.0495321]
[1741372111285,0.04790717,145.34,145.32,0.0495321]
[1741372111485,6.8807,145.33,145.32,0.0495321]
[1741372112478,32.66790717,145.34,145.23,47.61478152]
[1741372112680,58.4058653,145.34,145.23,36.78868152]
[1741372113093,6.8829,145.29,145.24,6.8845]
[1741372113287,58.4058653,145.34,145.23,36.78868152]
[1741372113588,6.8818,145.31,145.27,0.05125817]
[1741372113795,0.04854622,145.3,145.27,0.05125817]
[1741372113992,32.62,145.35,145.25,32.62]
[1741372114289,0.04674373,145.3,145.27,25.83806191]
[1741372114500,0.04674373,145.3,145.25,58.4058653]
[1741372114501,7.6031,145.39,145.3,25.7858653]
[1741372114687,7.6031,145.39,145.34,6.8799]
[1741372114885,7.6031,145.39,145.31,32.62]
[1741372115191,6.8784,145.38,145.32,6.8809]
[1741372115586,7.6031,145.39,145.34,0.04901779]
[1741372115587,0.04498573,145.36,145.34,0.04901779]
[1741372117195,0.04498573,145.36,145.35,39.4998]
[1741372117392,1.11760274,145.4,145.35,32.62]
[1741372117584,1.11760274,145.4,145.36,6.879]
[1741372118188,1.11760274,145.4,145.35,39.4997]
[1741372118594,0.04784149,145.39,145.34,0.04901779]
[1741372118790,0.04784149,145.39,145.35,32.62]
[1741372119904,0.04784149,145.39,145.36,25.7858653]
[1741372120197,1.11760274,145.4,145.36,25.7858653]
[1741372120386,1.11760274,145.4,145.39,6.8779]
[1741372120589,1.11760274,145.4,145.39,39.4779]
[1741372121989,1.254e-05,145.43,145.42,6.8764]
[1741372122192,20.3581308,145.48,145.42,25.7858653]
[1741372122398,20.3581308,145.48,145.43,32.6]
[1741372122596,20.3581308,145.48,145.45,6.875]
[1741372122985,20.3581308,145.48,145.45,29.2258653]
[1741372123186,15.24960974,145.5,145.46,25.7858653]
[1741372123396,15.24960974,145.5,145.49,25.7858653]
[1741372123602,15.24960974,145.5,145.49,6.8731]
[1741372123806,15.24960974,145.5,145.47,32.6]
[1741372124189,15.24960974,145.5,145.42,25.7858653]
[1741372124499,3.9119,145.49,145.47,0.04885714]
[1741372124700,7.8864,145.49,145.39,58.3858653]
[1741372125296,25.7858653,145.48,145.39,32.6]
[1741372125501,25.7858653,145.48,145.37,6.8786]
[1741372125902,0.05086269,145.44,145.41,0.0438314]
[1741372128302,6.92646269,145.44,145.41,0.0438314]
[1741372128501,0.05086269,145.44,145.41,0.0438314]
[1741372129406,0.05086269,145.44,145.41,74.48727628]
[1741372129906,0.05086269,145.44,145.41,32.6438314]
[1741372130210,0.05086269,145.44,145.41,0.0438314]
[1741372130706,0.05086269,145.44,145.41,6.9204314]
[1741372131009,0.05086269,145.44,145.41,0.0438314]
[1741372133210,32.58,145.43,145.33,32.58]
[1741372133406,3.8266,145.42,145.33,32.58]
[1741372134106,32.58,145.46,145.33,32.58]
[1741372134313,6.434e-05,145.39,145.36,0.04990405]
[1741372134617,3.8266,145.48,145.38,41.84344488]
[1741372135116,3.8266,145.48,145.38,74.42344488]
[1741372135317,6.8749,145.46,145.41,6.8766]
[1741372135617,0.04860575,145.45,145.42,0.04614769]
[1741372136117,0.04860575,145.45,145.42,6.92224769]
[1741372136313,0.04860575,145.45,145.42,0.04614769]
[1741372137019,6.876,145.43,145.42,0.04614769]
[1741372137712,6.8757,145.44,145.42,0.04614769]
[1741372137913,0.04860575,145.45,145.42,0.04614769]
[1741372138315,6.876,145.43,145.42,0.04614769]
[1741372138519,0.04860575,145.45,145.38,32.58]
[1741372138716,32.58,145.46,145.33,32.58]
[1741372139019,32.58,145.46,145.35,41.84344488]
[1741372139221,32.58,145.46,145.38,6.8782]
[1741372139523,6.8768,145.42,145.35,41.84344488]
[1741372139717,6.8768,145.42,145.41,0.04591548]
[1741372139917,6.8768,145.42,145.37,6.8785]
[1741372140112,0.05059771,145.43,145.4,0.05239413]
[1741372140314,32.58,145.46,145.35,41.84344488]
[1741372140619,0.04341502,145.43,145.4,0.04877198]
[1741372140825,6.8779,145.39,145.33,32.58]
[1741372141122,32.58,145.42,145.34,6.8801]
[1741372141423,7.8653,145.41,145.34,6.8801]
[1741372141721,7.8653,145.41,145.32,41.84344488]
[1741372141922,0.05070053,145.39,145.36,0.04880581]
[1741372142119,6.8786,145.38,145.36,0.04880581]
[1741372142323,0.05070053,145.39,145.29,41.84344488]
[1741372142519,6.8803,145.34,145.3,6.8819]
[1741372142718,214.2053,145.41,145.3,6.8819]
[1741372142918,214.2053,145.41,145.29,74.42344488]
[1741372143218,6.8796,145.36,145.31,6.8814]
[1741372143418,0.04908338,145.35,145.32,0.04696381]
[1741372143719,6.8786,145.38,145.33,6.8807]
[1741372143915,214.2053,145.41,145.29,74.42344488]
[1741372144116,0.0509866,145.37,145.34,0.05188948]
[1741372145423,0.0509866,145.37,145.3,6.8818]
[1741372145610,0.0509866,145.37,145.28,32.58]
[1741372145818,32.58,145.38,145.28,32.58]
[1741372146116,3.7478,145.4,145.31,41.84344488]
[1741372146717,0.05130079,145.37,145.34,0.0529533]
[1741372147324,0.05130079,145.37,145.34,6.9331533]
[1741372147624,0.05130079,145.37,145.34,0.0529533]
[1741372148421,6.8796,145.36,145.34,0.0529533]
[1741372148621,0.05130079,145.37,145.34,0.0529533]
[1741372149225,32.63130079,145.37,145.28,25.77564986]
[1741372149428,32.58,145.37,145.29,6.8825]
[1741372149622,32.58,145.37,145.28,25.77564986]
[1741372150221,0.04665592,145.34,145.31,0.0493542]
[1741372153034,6.92715592,145.34,145.31,0.0493542]